Cogmind - Beta 14 @@@ ROGUE MODE // 2025.01.04 @ 20:20:52 Player: Nueadkie Result: Destroyed by 5V-AQB(R) with Subdweller Machine Gun Performance ------------- Evolutions (0) 0 Regions Visited (2) 400 Robots Destroyed (36) 180 Value Destroyed (892) 892 Prototype IDs (11) 220 Alien Tech Used (0) 0 Bonus (0) 0 TOTAL SCORE: 1692 Bonus ------- None Cogmind --------- Core Integrity 0/250 Matter 273/300 Energy 100/100 System Corruption 2% Temperature Cool (0) Movement Treading (480) Ox4 Location -10/Subcaves Parts ------- > --- POWER (1) -------- (None) > --- PROPULSION (2) --- Light Treads > --- UTILITY (2) ------ Huge Storage Unit Improved Terrain Scanner > --- WEAPON (2) ------- Heavy Assault Rifle Subdweller Machine Gun > --- INVENTORY (25) --- Meta Core Light Treads Improved Heat Sink Small Storage Unit Visual Processing Unit Sensor Array Signal Interpreter Seismic Detector Hardened Light Armor Plating Makeshift Light Armor Plating Hacking Suite Makeshift System Shield Makeshift System Shield Authchip [Weapon] Tractor Beam Rainbow Chip Rocket Launcher Rocket Launcher Multitool Peak State ------------ > --- POWER ------------ Subdweller Power Source > --- PROPULSION ------- Subdweller Monowheel Subdweller Monowheel > --- UTILITY ---------- Huge Storage Unit Improved Terrain Scanner > --- WEAPON ----------- Riot Gun Battle Cannon > --- INVENTORY -------- Subdweller Power Source Meta Core Light Treads Light Treads Light Treads Light Treads Improved Heat Sink Small Storage Unit Visual Processing Unit Sensor Array Signal Interpreter Improved Terrain Scanner Seismic Detector Hardened Light Armor Plating Makeshift Light Armor Plating Hacking Suite Makeshift System Shield Makeshift System Shield Authchip [Weapon] Tractor Beam Rainbow Chip Riot Gun Rocket Launcher Rocket Launcher [Rating: 22] Favorites ----------- Power Light Ion Engine Engine Light Ion Engine Propulsion Light Treads Treads Light Treads Wheel Subdweller Monowheel Utility Huge Storage Unit Device Improved Terrain Scanner Storage Huge Storage Unit Weapon Medium Laser Energy Gun Medium Laser Ballistic Gun Subdweller Machine Gun Ballistic Cannon Battle Cannon Launcher Rocket Launcher Special Weapon Mining Laser Build | -11 -10 -10 ------- Run | Yrd Mat Sub Slots Evolved . | . . . Power . | . . . Propulsion . | . . . Utility . | . . . Weapon . | . . . Parts Attached 36 | 7 1 28 Power 5 | 1 . 4 Engine 5 | 1 . 4 Core . | . . . Reactor . | . . . Propulsion 11 | 2 . 9 Treads 6 | 2 . 4 Leg . | . . . Wheel 5 | . . 5 Hover . | . . . Flight . | . . . Utility 6 | 2 1 3 Device 4 | 1 . 3 Storage 2 | 1 1 . Processor . | . . . Hackware . | . . . Protection . | . . . Artifact . | . . . Weapon 14 | 2 . 12 Energy Gun 5 | 1 . 4 Energy Cannon . | . . . Ballistic Gun 6 | 1 . 5 Ballistic Cannon 1 | . . 1 Launcher 1 | . . 1 Special Weapon 1 | . . 1 Impact Weapon . | . . . Slashing Weapon . | . . . Piercing Weapon . | . . . Special Melee Weapon . | . . . Unidentified Prototypes . | . . . Corrupted Parts 1 | . . 1 System Corruption 2 | . . 2 Parts Lost 12 | . . 12 Power 4 | . . 4 Propulsion 1 | . . 1 Utility 1 | . . 1 Weapon 6 | . . 6 Highest Loss Streak 2 | . . 2 To Critical Strikes . | . . . Average Slot Usage (%) 94 | . 100 93 Engine 13 | . 14 13 Treads 12 | . 28 9 Wheel 11 | . . 14 Device 13 | . 14 13 Storage 14 | . 14 14 Energy Gun 10 | . 14 9 Ballistic Gun 13 | . 14 13 Ballistic Cannon 1 | . . 2 Peak Build Rating 22 | 7 10 22 Average Rating 15 | 5 9 16 On Entrance 5 | . 7 10 Naked Turns . | . . . Heaviest Build 93 | 13 88 93 Greatest Support 40 | 40 40 40 Greatest Overweight (x) 4 | . 2 4 Average Overweight (x) 2 | . 1 2 Largest Inventory Capacity 25 | 8 25 25 Average Capacity 24 | 7 24 25 Most Carried 25 | 5 20 25 Average Carried 21 | 2 14 23 Final Capacity 25 | 8 25 25 Final Carried 20 | 5 20 19 Class Distribution -------------------- 51% | Mutant 48% | Scavenger-Mutant Dominant Class ---------------- Mutant | -10/Materials Scavenger-Mutant | -10/Subcaves Resources | -11 -10 -10 ----------- Run | Yrd Mat Sub Matter Collected 1039 | 300 130 609 Remotely 280 | 150 130 . Salvage Created 1312 | 148 460 704 Parts 90 | 14 31 45 Haulers Intercepted 1 | . 1 . Recyclers Shooed 1 | 1 . . Parts Field Recycled . | . . . Retrieved Matter . | . . . Parts Self-Destructed 15 | . . 15 Prevented 2 | . . 2 Kills | -11 -10 -10 ------- Run | Yrd Mat Sub Combat Hostiles Destroyed 21 | . 5 16 Guns 15 | . 5 10 Cannons 3 | . . 3 AOE 3 | . . 3 Classes Destroyed 13 | 2 5 6 Worker 3 | . 3 . Tunneler 4 | 4 . . Hauler 1 | . 1 . Recycler 2 | 1 1 . Operator 1 | . 1 . Turret 2 | . . 2 Watcher 2 | . 2 . Swarmer 3 | . . 3 Grunt 7 | . 5 2 Sentry 1 | . . 1 Artisan 1 | . . 1 Cobbler 2 | . . 2 Subdweller 10 | . . 10 Best Kill Streak 4 | 2 4 3 Combat Bots Only 3 | . 1 3 Max Kills in Single Turn 2 | 1 1 2 Gunslinging . | . . . Exploded 2 | . . 2 Melee . | . . . Uniques/NPCs Destroyed . | . . . Combat | -11 -10 -10 -------- Run | Yrd Mat Sub Hostile Shots Fired 176 | . 24 152 Missed 67 | . 5 62 Damage Taken 1846 | . 217 1629 Core 272 | . 31 241 Absorbed by Shields . | . . . Core Remaining (%) 100 | 100 . . Volleys Fired 196 | 10 40 146 Largest 2 | 2 2 2 Hottest 100 | 70 70 100 Shots Fired 302 | 20 80 202 Gun 262 | 20 80 162 Cannon 20 | . . 20 Launcher 9 | . . 9 Special 11 | . . 11 Kinetic 162 | 10 40 112 Thermal 114 | 10 40 64 Explosive 9 | . . 9 Electromagnetic 17 | . . 17 Robot Hit Streak 23 | 8 23 11 Robot Miss Streak 7 | 1 6 7 Penetration Max . | . . . Secondary Targets . | . . . Shots Hit Robots 148 | 15 49 84 Core Hits 70 | 6 21 43 Critical Kills 1 | . . 1 Critical Parts Destroyed 1 | . 1 . Critical Strikes 7 | . 3 4 Burn 5 | . 2 3 Destroy 2 | . 1 1 Melee Attacks . | . . . Impact . | . . . Slashing . | . . . Piercing . | . . . Sneak Attacks . | . . . Combat Hostiles . | . . . Follow-up Attacks . | . . . Damage Inflicted 2602 | 188 686 1728 Guns 2035 | 188 686 1161 Cannons 133 | . . 133 Explosions 434 | . . 434 Melee . | . . . Ramming . | . . . Kinetic 1186 | 89 311 786 Thermal 759 | 99 375 285 Explosive 434 | . . 434 Electromagnetic 223 | . . 223 Impact . | . . . Slashing . | . . . Piercing . | . . . Highest Corruption 2 | . . 2 Average Corruption 2 | . . 2 Corruption Purged . | . . . Corruption Blocked . | . . . Effects 2 | . . 2 Message Errors 1 | . . 1 Data Loss (major) 1 | . . 1 Overload Shots . | . . . Overflow Damage 2 | . . 2 Projectiles . | . . . Explosions 2 | . . 2 Melee . | . . . Knockbacks 2 | . . 2 Impact . | . . . Kinetic 2 | . . 2 Secondary . | . . . Self-Inflicted Damage 15 | . . 15 Shots 1 | . . 1 Rammed . | . . . Targets Rammed . | . . . Kicked . | . . . Crushed . | . . . Highest Temperature 266 | 45 102 266 Average Temperature 38 | 18 26 130 Received Heat Transfer 1078 | . 135 943 Siege Activations . | . . . Robots Corrupted . | . . . Combat Hostiles . | . . . Parts Fried . | . . . Impact Corruptions . | . . . Robots Melted . | . . . Combat Hostiles . | . . . Parts Melted 3 | 1 1 1 Heat Transferred 2627 | 296 1258 1073 Parts Sabotaged . | . . . Parts Stolen . | . . . Parts Stripped . | . . . Power Chain Reactions . | . . . Alert | -11 -10 -10 ------- Run | Yrd Mat Sub Peak Influence 147 | 25 147 . Initial 16 | . 16 . Average 45 | 11 50 . Maximum Alert Level . | . . . Low Security (%) 100 | 100 100 . Level 1 . | . . . Level 2 . | . . . Level 3 . | . . . Level 4 . | . . . Level 5 . | . . . High Security . | . . . Max Security . | . . . Squads Dispatched 3 | . 3 . Investigation 2 | . 2 . Extermination . | . . . Reinforcement 1 | . 1 . Assault . | . . . Garrison . | . . . Intercept . | . . . Searches Triggered . | . . . Construction Impeded . | . . . Haulers Reinforced . | . . . Active Scanning Responses . | . . . Cargo Convoy Interrupts . | . . . Stealth | -11 -10 -10 --------- Run | Yrd Mat Sub Distress Signals . | . . . Communications Jammed . | . . . Distress Signals . | . . . Times Spotted 39 | . 13 26 Peak Tracking Total 5 | . 2 5 Tactical Retreats 3 | . 1 2 Traps | -11 -10 -10 ------- Run | Yrd Mat Sub Traps Triggered 5 | . 1 4 Indirectly . | . . . Trap Hack Attempts . | . . . Triggered . | . . . Disarmed . | . . . Reprogrammed . | . . . Reused . | . . . Traps Extracted . | . . . Installed . | . . . Triggered 1 | . . 1 Machines | -11 -10 -10 ---------- Run | Yrd Mat Sub Machines Disabled 4 | . . 4 Max in Single Turn 3 | . . 3 Machines Repaired . | . . . Machines Dismantled . | . . . Machines Sabotaged . | . . . Overloaded Fab Kills . | . . . Hacking | -11 -10 -10 --------- Run | Yrd Mat Sub Machines Accessed 5 | . 3 2 Terminals 2 | . 2 . Fabricators . | . . . Repair Stations . | . . . Recycling Units 1 | . 1 . Scanalyzers . | . . . Garrison Access . | . . . Total Hacks 20 | . 8 12 Successful 14 | . 2 12 Failed 6 | . 6 . Catastrophic 1 | . 1 . Database Lockouts . | . . . Manual 6 | . 4 2 Terminals 6 | . 6 . Fabricators . | . . . Repair Stations . | . . . Recycling Units 2 | . 2 . Scanalyzers . | . . . Garrison Access . | . . . Terminal Hacks 12 | . . 12 Record 11 | . . 11 Derelict Proto ID Bank 1 | . . 1 Fabricator Hacks . | . . . Repair Station Hacks . | . . . Recycling Unit Hacks 2 | . 2 . Report Inventory 1 | . 1 . Retrieve Components 1 | . 1 . Scanalyzer . | . . . Garrison Access Hacks . | . . . Unauthorized Hacks . | . . . Terminals . | . . . Fabricators . | . . . Repair Stations . | . . . Recycling Units . | . . . Scanalyzers . | . . . Garrison Access . | . . . Data Cores Recovered . | . . . Used . | . . . Hacking Detections 2 | . 2 . Full Trace Events 1 | . 1 . Feedback Events . | . . . Feedback Blocked . | . . . Robot Schematics Acquired . | . . . Robots Built . | . . . Authchips . | . . . Time . | . . . Total Robot Build Rating . | . . . Part Schematics Acquired . | . . . Parts Built . | . . . Authchips . | . . . Time . | . . . Total Part Build Rating . | . . . Parts Repaired . | . . . Time . | . . . Parts Recycled . | . . . Recycled Matter . | . . . Retrieved Matter . | . . . Retrieved Components 7 | . 7 . Parts Scanalyzed . | . . . Part Schematics Acquired . | . . . Parts Damaged . | . . . Bothacking | -11 -10 -10 ------------ Run | Yrd Mat Sub Used RIF Installer . | . . . Robots Hacked . | . . . Non-combat . | . . . Combat . | . . . Robot Hacks Applied . | . . . Relay Couplers Released . | . . . Fabnet Peak Effective % . | . . . Robots Rewired . | . . . Allies Hacked . | . . . Hacks Repelled . | . . . Allies | -11 -10 -10 -------- Run | Yrd Mat Sub Total Allies . | . . . Largest Group . | . . . Highest-Rated Group . | . . . Highest-Rated Ally . | . . . Total Orders . | . . . Ally Attacks . | . . . Total Damage . | . . . Kills . | . . . Allies Corrupted . | . . . Allies Melted . | . . . Intel | -11 -10 -10 ------- Run | Yrd Mat Sub Robot Analysis Total . | . . . Derelict Logs Recovered 3 | . . 3 Drone Launches . | . . . Drone Recoveries . | . . . Exploration | -11 -10 -10 ------------- Run | Yrd Mat Sub Turns Passed 5809 | 145 1028 4636 Spaces Moved 2640 | 64 249 2327 Core 2 | 2 . . Treads 742 | 62 249 431 Legs . | . . . Wheels 1896 | . . 1896 Hover . | . . . Flight . | . . . Fastest Speed 50 | 50 160 130 Average Speed 185 | 156 309 173 Slowest Speed 480 | 160 320 480 Overloaded Moves . | . . . Propulsion Burnouts . | . . . Robots Hopped . | . . . Cave-ins Triggered . | . . . Exploration Rate (%) 51 | 6 54 93 Regions Visited 2 Branch Regions 1 Pre-discovered Areas 2 | . . 2 Known Exits Taken . | . . . Unknown Exits Taken 2 | 1 1 . Scrap Searched . | . . . Spaces Dug . | . . . Terrain Destroyed 37 | . . 37 Melee . | . . . Projectile 1 | . . 1 AOE 36 | . . 36 Terrain Rammed . | . . . Walls Destroyed . | . . . Machines Disabled . | . . . Actions | -11 -10 -10 --------- Run | Yrd Mat Sub Total 3228 | 85 427 2716 Wait 293 | . 124 169 Move 2638 | 63 248 2327 Hop . | . . . Pick Up 37 | 5 14 18 Fast Attach 13 | 7 . 6 Attach 22 | . . 22 Detach 13 | . . 13 Swap 1 | . 1 . Drop 15 | . . 15 Fire 196 | 10 40 146 Melee . | . . . Ram . | . . . Kick . | . . . Crush . | . . . Escape Stasis . | . . . Rewire . | . . . Trap . | . . . Miscellaneous . | . . . Route ------- -11/Scrapyard -10/Materials (discovered 3 exits: [*Min x2] / *Sub) -10/Subcaves (discovered 3 exits: [*Mat x2] / *Rec) History --------- Turn | Location | Event 21 | -11/Scrapyard | Discovered new exit (range 16) 146 | -11/Scrapyard | Entered Materials 209 | -10/Materials | Discovered new exit (range 7) 307 | -10/Materials | Build established: Mutant 728 | -10/Materials | Discovered new exit (range 13) 1148 | -10/Materials | Discovered new exit (range 6) 1174 | -10/Materials | Entered Subcaves 1181 | -10/Subcaves | Identified exit to Recycling 1254 | -10/Subcaves | Learned location of Zion (-7) 2362 | -10/Subcaves | Visited 4L-MR0's lab 2415 | -10/Subcaves | Found Rainbow Chip 3168 | -10/Subcaves | Build established: Scavenger-Mutant 3225 | -10/Subcaves | Discovered new exit (range 13) 3574 | -10/Subcaves | Shifting Twisted Machinery released Battle Cannon 3724 | -10/Subcaves | Shifting Twisted Machinery released Riot Gun 3797 | -10/Subcaves | Discovered new exit (range 10) 3902 | -10/Subcaves | Shifting Twisted Machinery released Riot Gun 4150 | -10/Subcaves | Visited Clippyterm 4159 | -10/Subcaves | Learned location of Extension (-5) 4338 | -10/Subcaves | Core integrity fell below 50% 4364 | -10/Subcaves | Found Meta Core 4403 | -10/Subcaves | A swath of the cavern ceiling suddenly collapsed 4996 | -10/Subcaves | Learned Materials trap positions 5015 | -10/Subcaves | Ambushed by Subdwellers from Twisted Machinery 5119 | -10/Subcaves | Core integrity fell below 20% 5540 | -10/Subcaves | Shifting Twisted Machinery released Battle Rifle 5559 | -10/Subcaves | Shifting Twisted Machinery released Sub. Power Source 5810 | -10/Subcaves | Destroyed by 5V-AQB(R) with Subdweller Machine Gun Last Messages --------------- Machinery. Sub. Power Source falls loose from the Twisted Machinery. 05651_ Sub. Power Source shoots sparks and powers down. 05652_ Riot Gun destroyed. 05655_ Y-45 Defender destroyed. 05668_ Corrupted Hvy. Assault Rifle self-destruct mechanism malfunctions. 05670_ Acquired Corrupted Hvy. Assault Rifle. 05670_ Integrated Corrupted Hvy. Assault Rifle (+2). 05672_ Acquired 43 matter. 05675_ #X4MF KH=F40X&GWBS &ISO,D06QY0W6= 05743_ System corrupted: Substantial component data lost. 05780_ Broken Sub. Power Source destroyed. 05783_ Sub. Machine Gun shoots sparks and powers down. 05790_ Lgt. Treads destroyed. Map ----- +----------------------------------------------------+ | ???????????????????????????????????????????? | | ???????????????????????????????????????????? | | ???????????????????????????????????????????? | | ???????????????????????????????????????????? | | ???????????????????????????????????????????? | | ???????????????????????????????????????????? | | ???????????????????????????????????????????? | | ???????????????????????????????????????????? | | ???????????????????????????????????????????? | | ??????????????????????#??#?????????????????? | | ???????????????????????????????????????????? | | ?????????????????????????#?????????????????? | | ???????????????????????????????????????????? | | ????????????????????#??????????????????????? | | ??????????????#?????????????#?#????????????? | | ????????????#??????????????????#???????????? | | ?????????????????????###???????????????????? | | ??????????????????### ###?????????????????? | | ???????? ?????????# ##???#?????????????? | | ?????????????????## ###???????????????? | | ?????????????????# #????#??????????? | | ?????????????#####< #???????#???????? | | ?????????????# #< ##???????????????? | | ???#?????????# ##??????##?????#??? | | ??????????? ?# R ##?????????????????? | | ?????????????# #< @ #?????#???????#????? | | ?????????"???##?## ##?????????????#????? | | ????#???? ??#??? # ##??????????#????????? | | ????##???????? ??## ##???#######?#??#??#?#? | | ?????????"????? ??# #?#### #??#?????#?? | | ?????????????????## ### # #??????????? | | ?????????? ????### # #?#???###?#? | | ???????????????# ###????????? | | ???????????????## ### # ##??##???# | | ????????????????## ##?#### ##??????? | | ?????????????#???##?????### #?#??#??# | | ??????????????????#??#????## ####???????? | | ?????????????#???#?#????#?## ##??#???????? | | ???????????#?##??#????????# #??????#???## | | ?????????????????#???#????# ##??##?#?#?#?? | | ?????????????????#????????## ###???#??????? | | ?????????????????#????#??### #????#??????? | | ???????????????##?#???#??#?# ##??#????#???# | | ????????????????#???????#?## #?#??#???#??# | | ????????#?????#?#???#??#??## ##???????????? | | ????????????????????#?????# ###??#??#???#? | | ?????????#???????#???###### % #???????#?#?? | | ????????????#???????## # ##??#??????#?# | | ???????????????????## # ##?#????????# | | ?????????????##??#?# * # ## ##???#????#??? | +----------------------------------------------------+ Best States ------------- Heat Dissipation 25 Energy Generation 15 Energy Capacity 250 Matter Stores 300 Matter Capacity 300 Sight Range 16 Terrain Scan Range 16 Terrain Scan Density 10 Evasion (%) 40 Recoil Reduction 2 Authchip Count 1 Item Schematics ----------------- None Robot Schematics ------------------ None Fabricated ------------ Nothing Alien Tech Used ----------------- None Achievements -------------- Use The Force Challenges ------------ None Game ------ Seed UtilityPropulsionAirjet Manual? 0 Play Time 00:44:48 Cumulative 19.3 hours Start 2025.01.04 @ 19:35:09 End 2025.01.04 @ 20:20:52 Sessions 1 Manual Loads 0 Difficulty Rogue Special Mode None Game No. 23 Rogue 23 Adventurer 0 Explorer 0 Win Type - Total 0 Types 0/0/0/0/0/0/0/0/0 Lore% 12 Gallery% 21 Achievement% 20 Wizard Run 0 Options --------- Layout 1 ASCII 0 Keyboard 1 Movement Vi Keybinds 0 Fullscreen 1 Font 24/Smallcaps Map View 50x35 Zoom Use 0% Tactical HUD 1 Map Filters NONE Filters NONE Steam 1 RUN: f87918a4-e8c6-46bd-bd92-ec51e94a2cf6